bitfinex/quotes_BTCUSD_20251214
["timestamp","ask_amount","ask_price","bid_price","bid_amount"]
[1765688766274,0.22162138,90244.0,90241.0,0.8079]
[1765688766275,0.22162629,90242.0,90241.0,0.8079]
[1765688766618,0.22162629,90242.0,90241.0,0.6622]
[1765688766820,0.03328084,90243.0,90241.0,0.6622]
[1765688767018,0.04436203,90243.0,90240.0,0.01748]
[1765688767243,0.04436203,90243.0,90241.0,1.0]
[1765688767644,0.001,90242.0,90241.0,1.0]
[1765688768048,0.26598628,90243.0,90240.0,0.01748]
[1765688768258,0.26698628,90243.0,90241.0,1.0]
[1765688768604,0.26598628,90243.0,90241.0,1.0]
[1765688769011,0.002,90242.0,90241.0,1.0]
[1765688769568,0.001,90242.0,90241.0,1.0]
[1765688769814,0.001,90242.0,90241.0,1.00079417]
[1765688770584,0.03328084,90242.0,90241.0,1.00079417]
[1765688771386,0.03528084,90242.0,90241.0,1.00079417]
[1765688777786,0.25690713,90242.0,90241.0,1.00079417]
[1765688778194,0.25690713,90242.0,90241.0,0.00079417]
[1765688778394,0.25690713,90242.0,90241.0,1.00079417]
[1765688778984,0.03528084,90242.0,90241.0,1.00079417]
[1765688790372,0.03328084,90242.0,90241.0,0.00079417]
[1765688790578,0.03428084,90242.0,90241.0,1.00079417]
[1765688790785,0.03528084,90242.0,90241.0,1.00079417]
[1765688792354,0.03528084,90242.0,90241.0,0.00079417]
[1765688792571,0.03528084,90242.0,90241.0,1.00079417]
[1765688795241,0.03528084,90242.0,90241.0,1.24715291]
[1765688795447,0.03528084,90242.0,90241.0,1.04216417]
[1765688796153,0.03528084,90242.0,90241.0,1.26379291]
[1765688797653,0.03528084,90242.0,90241.0,1.04216417]
[1765688797854,0.03528084,90242.0,90241.0,1.10201006]
[1765688801404,0.03528084,90242.0,90241.0,1.06064006]
[1765688801640,0.25690713,90242.0,90241.0,1.00079417]
[1765688805291,0.03528084,90242.0,90241.0,1.00079417]
[1765688805470,0.03528084,90242.0,90241.0,1.02552417]
[1765688806208,0.03528084,90242.0,90241.0,1.00079417]
[1765688806446,0.03528084,90242.0,90241.0,1.06064006]
[1765688807365,0.25690713,90242.0,90241.0,1.00079417]
[1765688810199,0.03528084,90242.0,90241.0,1.00079417]
[1765688810900,0.03528084,90242.0,90241.0,0.00079417]
[1765688811125,0.03528084,90242.0,90241.0,1.00079417]
[1765688824171,0.03528084,90242.0,90241.0,1.06064006]
[1765688824986,0.03528084,90242.0,90241.0,0.06064006]
[1765688825186,0.03528084,90242.0,90241.0,1.06064006]
[1765688829297,0.14589284,90242.0,90241.0,1.00079417]
[1765688829491,0.14589284,90242.0,90241.0,0.79859417]
[1765688829904,0.14589284,90242.0,90241.0,0.63089417]
[1765688830114,0.17359612,90242.0,90241.0,0.65759417]
[1765688830540,0.17359612,90242.0,90241.0,0.62789417]
[1765688830911,0.14589284,90242.0,90241.0,0.62789417]
[1765688831086,0.14589284,90242.0,90241.0,0.65709417]
[1765688831294,0.17359612,90242.0,90241.0,0.62219417]
[1765688832056,0.17359612,90242.0,90241.0,0.00079417]
[1765688832282,0.17359612,90242.0,90241.0,1.00079417]
[1765688833092,0.17359612,90242.0,90241.0,0.00079417]
[1765688833317,0.17359612,90242.0,90241.0,1.00079417]
[1765688834042,0.06298412,90242.0,90241.0,0.00079417]
[1765688834255,0.35368412,90242.0,90241.0,0.00079417]
[1765688834421,0.43659284,90242.0,90241.0,0.00079417]
[1765688834831,0.43559284,90242.0,90241.0,0.00079417]
[1765688835232,0.43659284,90242.0,90241.0,0.00079417]
[1765688835432,0.43559284,90242.0,90241.0,0.00079417]
[1765688835641,0.43459284,90242.0,90241.0,0.00079417]
[1765688835812,0.43759284,90242.0,90241.0,0.00079417]
[1765688836385,0.43559284,90242.0,90241.0,0.00079417]
[1765688836608,0.38237583,90242.0,90241.0,0.00079417]
[1765688850915,0.32698084,90242.0,90241.0,0.00079417]
[1765688854025,0.38237583,90242.0,90241.0,0.00079417]
[1765688854456,0.32698084,90242.0,90241.0,0.00079417]
[1765688855076,0.38237583,90242.0,90241.0,0.00079417]
[1765688856091,0.32698084,90242.0,90241.0,0.00079417]
[1765688858296,0.38237583,90242.0,90241.0,0.00079417]
[1765688858495,0.32698084,90242.0,90241.0,0.00079417]
[1765688860860,0.43759284,90242.0,90241.0,0.00079417]
[1765688861559,0.32698084,90242.0,90241.0,0.00079417]
[1765688862949,0.38237583,90242.0,90241.0,0.00079417]
[1765688863149,0.32698084,90242.0,90241.0,0.00079417]
[1765688863592,0.38237583,90242.0,90241.0,0.00079417]
[1765688863796,0.32698084,90242.0,90241.0,0.00079417]
[1765688865542,0.38237583,90242.0,90241.0,0.00079417]
[1765688865747,0.32698084,90242.0,90241.0,0.00079417]
[1765688865947,0.43759284,90242.0,90241.0,0.00079417]
[1765688868961,0.43759284,90242.0,90206.0,0.07978433]
[1765688868962,0.01108536,90209.0,90206.0,0.07978433]
[1765688869171,0.01108536,90209.0,90200.0,0.0021]
[1765688869172,0.51242703,90201.0,90200.0,0.0021]
[1765688869380,0.51242703,90201.0,90200.0,0.00217672]
[1765688869583,0.54572334,90201.0,90200.0,0.00217672]
[1765688869787,0.54572334,90201.0,90200.0,0.00340168]
[1765688870416,0.54672334,90201.0,90200.0,0.00340168]
[1765688870857,0.54572334,90201.0,90200.0,0.00340168]
[1765688871176,0.54672334,90201.0,90200.0,0.00340168]
[1765688884614,0.51342703,90201.0,90200.0,0.00340168]
[1765688885003,0.51242703,90201.0,90200.0,0.00340168]
[1765688885411,0.51242703,90201.0,90200.0,0.00440168]
[1765688886386,0.51242703,90201.0,90200.0,0.00540168]
[1765688944775,0.54572334,90201.0,90200.0,0.00540168]
[1765688956272,0.65633534,90201.0,90200.0,0.00540168]
[1765688956787,0.54572334,90201.0,90200.0,0.00540168]
[1765688966388,0.60111833,90201.0,90200.0,0.00540168]
[1765688970276,0.60111833,90201.0,90200.0,0.00340168]
[1765688970511,0.60211833,90201.0,90200.0,0.00340168]
[1765688972494,0.54672334,90201.0,90200.0,0.00340168]
[1765688978850,0.54672334,90201.0,90200.0,0.02832168]
[1765688979438,0.54672334,90201.0,90200.0,0.00340168]
[1765688979828,0.54572334,90201.0,90200.0,0.00340168]
[1765688984487,0.54572334,90201.0,90200.0,0.04493168]
[1765688984896,0.54572334,90201.0,90200.0,0.02001168]
[1765688985105,0.54572334,90201.0,90200.0,0.00340168]
[1765688989916,0.25502334,90201.0,90200.0,1.04493168]
[1765688990116,0.25502334,90201.0,90200.0,0.95083168]
[1765688990247,0.25502334,90201.0,90200.0,0.49053168]
[1765688990445,0.25502334,90201.0,90200.0,0.46561168]
[1765688990900,0.25502334,90201.0,90200.0,0.46031168]
[1765688991885,0.25502334,90201.0,90200.0,0.45541168]
[1765688992087,0.25502334,90201.0,90200.0,0.34291168]
[1765688992815,0.25502334,90201.0,90200.0,0.32630168]
[1765688992967,0.25502334,90201.0,90200.0,0.46660168]
[1765688995043,0.25502334,90201.0,90200.0,0.55450168]
[1765688995600,0.25502334,90201.0,90200.0,0.16000168]
[1765688996046,0.25502334,90201.0,90200.0,0.32230168]
[1765688997036,0.25502334,90201.0,90200.0,0.41090168]
[1765688998079,0.25502334,90201.0,90200.0,0.91170168]
[1765688998438,0.25502334,90201.0,90200.0,0.13150168]
[1765688999040,0.25502334,90201.0,90200.0,0.13030168]
[1765688999251,0.25502334,90201.0,90200.0,0.00340168]
[1765689002428,0.36563534,90201.0,90200.0,0.00340168]
[1765689002617,0.65633534,90201.0,90200.0,0.00340168]
[1765689004400,0.65733534,90201.0,90200.0,0.00340168]
[1765689063148,0.60211833,90201.0,90200.0,0.00340168]
[1765689110859,0.54672334,90201.0,90200.0,0.00340168]
[1765689111058,0.60211833,90201.0,90200.0,0.00340168]
[1765689119200,0.54672334,90201.0,90200.0,0.00501455]
[1765689120278,0.54672334,90201.0,90200.0,0.00340168]
[1765689120493,0.60211833,90201.0,90200.0,0.00340168]
[1765689120895,0.54672334,90201.0,90200.0,0.00340168]
[1765689121387,0.60211833,90201.0,90200.0,0.00340168]
[1765689146755,0.61247179,90201.0,90200.0,1e-08]
[1765689147003,0.2771466,90191.0,90190.0,0.04846675]
[1765689147221,0.27722777,90191.0,90190.0,0.04846675]
[1765689147588,0.27722777,90191.0,90190.0,0.04876562]
[1765689147753,0.31053148,90191.0,90190.0,0.04876562]
[1765689157245,0.60123148,90191.0,90190.0,0.04876562]
[1765689159445,0.61871148,90191.0,90190.0,0.04876562]
[1765689170387,0.61871148,90191.0,90180.0,0.0002]
[1765689170388,0.51246391,90186.0,90180.0,0.0002]
[1765689170595,0.62307591,90186.0,90180.0,0.0002]
[1765689171198,0.65638513,90186.0,90180.0,0.0002]
[1765689172282,0.65938513,90186.0,90180.0,0.0002]
[1765689172521,0.67686513,90186.0,90180.0,0.0002]
[1765689172901,0.66238513,90186.0,90180.0,0.0002]
[1765689173120,0.67986513,90186.0,90180.0,0.0002]
[1765689173911,0.66238513,90186.0,90180.0,0.0002]
[1765689174135,0.67986513,90186.0,90180.0,0.0002]
[1765689175930,0.55177313,90186.0,90182.0,0.00023913]
[1765689176138,0.60716812,90186.0,90182.0,0.00023913]
[1765689188039,0.55177313,90186.0,90182.0,0.00023913]
[1765689195099,0.60716812,90186.0,90182.0,0.00023913]
[1765689195430,0.55177313,90186.0,90182.0,0.00023913]
[1765689201409,0.60716812,90186.0,90182.0,0.00023913]
[1765689201750,0.55177313,90186.0,90185.0,0.05088743]
[1765689202584,0.54877313,90186.0,90185.0,0.05088743]
[1765689202887,0.54577313,90186.0,90185.0,0.05088743]
[1765689203088,0.54777313,90186.0,90185.0,0.05088743]
[1765689203878,0.54977313,90186.0,90185.0,0.05088743]
[1765689207099,0.54977313,90186.0,90185.0,0.09080743]
[1765689207787,0.54977313,90186.0,90185.0,0.06666743]
[1765689217314,0.54977313,90186.0,90185.0,0.05088743]
[1765689224179,0.60516812,90186.0,90185.0,0.05088743]
[1765689224329,0.54977313,90186.0,90185.0,0.05088743]
[1765689224517,0.60516812,90186.0,90185.0,0.05088743]
[1765689224713,0.54977313,90186.0,90185.0,0.05088743]
[1765689225329,0.60516812,90186.0,90185.0,0.05088743]
[1765689227013,0.54977313,90186.0,90185.0,0.05088743]
[1765689227774,0.60516812,90186.0,90185.0,0.05088743]
[1765689229007,0.54977313,90186.0,90185.0,0.05088743]
[1765689232120,0.54977313,90186.0,90185.0,0.04927456]
[1765689242265,0.03730922,90186.0,90185.0,1.09097743]
[1765689242465,0.004,90186.0,90185.0,1.31274379]
[1765689242786,0.004,90186.0,90185.0,1.42345425]
[1765689243287,0.002,90186.0,90185.0,1.42345425]
[1765689243640,8.117e-05,90191.0,90190.0,1.33246453]
[1765689243816,8.117e-05,90191.0,90190.0,1.3674774]
[1765689244020,8.117e-05,90191.0,90190.0,1.3916474]
[1765689245001,8.117e-05,90191.0,90190.0,1.3936474]
[1765689245441,8.117e-05,90191.0,90190.0,1.3956474]
[1765689249235,8.117e-05,90191.0,90190.0,0.3956474]
[1765689249418,8.117e-05,90191.0,90190.0,1.3956474]
[1765689251535,8.117e-05,90191.0,90190.0,1.28493694]
[1765689251942,8.117e-05,90191.0,90190.0,1.29626694]
[1765689267150,8.117e-05,90191.0,90190.0,1.4069774]
[1765689268015,8.117e-05,90191.0,90190.0,1.29626694]
[1765689272320,8.117e-05,90191.0,90190.0,1.4069774]
[1765689273287,8.117e-05,90191.0,90190.0,1.29626694]
[1765689273497,8.117e-05,90191.0,90190.0,1.4069774]
[1765689273702,8.117e-05,90191.0,90190.0,1.45699579]
[1765689274268,8.117e-05,90191.0,90190.0,1.49028387]
[1765689274463,8.117e-05,90191.0,90190.0,1.48828387]
[1765689274852,8.117e-05,90191.0,90190.0,1.49128387]
[1765689275504,8.117e-05,90191.0,90190.0,1.48928387]
[1765689275849,8.117e-05,90191.0,90190.0,1.49228387]
[1765689278600,8.117e-05,90191.0,90190.0,0.49228387]
[1765689278801,8.117e-05,90191.0,90190.0,1.49228387]
[1765689282652,8.117e-05,90191.0,90190.0,0.49228387]
[1765689282853,8.117e-05,90191.0,90190.0,1.49228387]
[1765689284265,8.117e-05,90191.0,90190.0,1.38157341]
[1765689284494,8.117e-05,90191.0,90190.0,1.33155502]
[1765689285527,8.117e-05,90191.0,90190.0,1.44226548]
[1765689287103,8.117e-05,90191.0,90190.0,1.33155502]
[1765689287303,8.117e-05,90191.0,90190.0,1.44226548]
[1765689295114,8.117e-05,90191.0,90190.0,0.44226548]
[1765689295441,8.117e-05,90191.0,90190.0,1.44226548]
[1765689300279,8.117e-05,90191.0,90190.0,0.44226548]
[1765689300481,8.117e-05,90191.0,90190.0,1.44226548]
[1765689301540,8.117e-05,90191.0,90190.0,1.33155502]
[1765689302524,8.117e-05,90191.0,90190.0,1.32855502]
[1765689302721,8.117e-05,90191.0,90190.0,1.32755502]
[1765689302906,8.117e-05,90191.0,90190.0,1.32955502]
[1765689303266,8.117e-05,90191.0,90190.0,0.32955502]
[1765689303487,8.117e-05,90191.0,90190.0,1.32955502]
[1765689307869,8.117e-05,90191.0,90190.0,1.29626694]
[1765689312997,8.117e-05,90191.0,90190.0,1.4069774]
[1765689318726,8.117e-05,90191.0,90190.0,0.4069774]
[1765689318931,8.117e-05,90191.0,90190.0,1.4069774]
[1765689319614,8.117e-05,90191.0,90190.0,1.29626694]
[1765689333938,8.117e-05,90191.0,90190.0,0.29626694]
[1765689334138,8.117e-05,90191.0,90190.0,1.29626694]
[1765689338954,8.117e-05,90191.0,90190.0,0.29626694]
[1765689339155,8.117e-05,90191.0,90190.0,1.29626694]
[1765689343083,8.117e-05,90191.0,90190.0,0.29626694]
[1765689343287,8.117e-05,90191.0,90190.0,1.29626694]
[1765689346123,8.117e-05,90191.0,90190.0,0.29626694]
[1765689346328,8.117e-05,90191.0,90190.0,1.29626694]
[1765689355265,8.117e-05,90191.0,90190.0,0.29626694]
[1765689355587,8.117e-05,90191.0,90190.0,1.29626694]
[1765689362353,8.117e-05,90191.0,90190.0,0.29626694]
[1765689362572,8.117e-05,90191.0,90190.0,1.29626694]
[1765689369135,8.117e-05,90191.0,90190.0,1.32955967]
[1765689377623,8.117e-05,90191.0,90190.0,1.44027013]
[1765689385750,8.117e-05,90191.0,90190.0,0.44027013]
[1765689385911,8.117e-05,90191.0,90190.0,1.44027013]
[1765689387818,8.117e-05,90191.0,90190.0,0.44027013]
[1765689388169,8.117e-05,90191.0,90190.0,1.44027013]
[1765689390328,8.117e-05,90191.0,90190.0,1.32955967]
[1765689391056,8.117e-05,90191.0,90190.0,1.06454273]
[1765689391057,0.22183278,90191.0,90190.0,1.06454273]
[1765689391253,0.22183278,90191.0,90190.0,0.48508]
[1765689391481,0.22183278,90191.0,90190.0,0.50985]
[1765689391702,0.22183278,90191.0,90190.0,0.52596]
[1765689391914,0.22183278,90191.0,90190.0,0.52196]
[1765689392115,0.22183278,90191.0,90190.0,1.00376]
[1765689392394,0.22183278,90191.0,90190.0,1.00476]
[1765689392773,0.22183278,90191.0,90190.0,0.73456]
[1765689392973,0.22183278,90191.0,90190.0,0.98186]
[1765689393180,0.22183278,90191.0,90190.0,0.96266]
[1765689393380,0.22183278,90191.0,90190.0,0.93906]
[1765689394075,0.22183278,90191.0,90190.0,0.95246]
[1765689394714,0.22183278,90191.0,90190.0,0.79076]
[1765689394840,0.22183278,90191.0,90190.0,0.77396]
[1765689395051,0.22183278,90191.0,90190.0,0.79416]
[1765689396169,0.22183278,90191.0,90190.0,0.81066]
[1765689397074,0.22183278,90191.0,90190.0,0.89426]
[1765689397273,0.22183278,90191.0,90190.0,0.81666]
[1765689398271,0.22183278,90191.0,90190.0,0.81626]
[1765689399202,0.22183278,90191.0,90190.0,0.89086]
[1765689400157,0.22183278,90191.0,90190.0,1.06036]
[1765689401962,0.22183278,90191.0,90190.0,0.82886]
[1765689403269,0.22183278,90191.0,90190.0,0.84266]
[1765689403675,0.22183278,90191.0,90190.0,0.82876]
[1765689403830,0.22183278,90191.0,90190.0,0.74906]
[1765689405370,0.22183278,90191.0,90190.0,0.83596]
[1765689405577,0.22183278,90191.0,90190.0,0.74776]
[1765689406385,0.22183278,90191.0,90190.0,0.60466]
[1765689407449,0.22183278,90191.0,90190.0,0.67596]
[1765689407647,0.22183278,90191.0,90190.0,0.48369]
[1765689407877,0.22183278,90191.0,90190.0,0.46758]
[1765689408469,0.22183278,90191.0,90190.0,1.01948]
[1765689412020,0.22183278,90191.0,90190.0,1.04425]
[1765689414599,0.22183278,90191.0,90190.0,1.01948]
[1765689415946,0.22183278,90191.0,90190.0,0.94928]
[1765689416400,0.22183278,90191.0,90190.0,0.97227]
[1765689416634,0.22183278,90191.0,90190.0,1.05782]
[1765689418938,0.22183278,90191.0,90190.0,1.01948]
[1765689421956,0.22183278,90191.0,90190.0,0.62558]
[1765689422719,0.22183278,90191.0,90190.0,1.01948]
[1765689423364,0.22183278,90191.0,90190.0,1.04247]
[1765689424636,0.22183278,90191.0,90190.0,0.04247]
[1765689424836,0.22183278,90191.0,90190.0,1.04247]
[1765689425640,0.22183278,90191.0,90190.0,0.04247]
[1765689425852,0.22183278,90191.0,90190.0,1.04247]
[1765689426453,0.22183278,90191.0,90190.0,0.98487]
[1765689426748,0.22183278,90191.0,90190.0,1.04247]
[1765689427052,0.22183278,90191.0,90190.0,0.99127]
[1765689427247,0.22183278,90191.0,90190.0,0.74038]
[1765689427612,0.22183278,90191.0,90190.0,0.01948]
[1765689427799,0.22183278,90191.0,90190.0,0.97958]
[1765689427999,0.22183278,90191.0,90190.0,0.81678]
[1765689428241,0.22183278,90191.0,90190.0,0.73898]
[1765689428463,0.22183278,90191.0,90190.0,1.01948]
[1765689429797,0.22183278,90191.0,90190.0,0.92898]
[1765689441148,0.22183278,90191.0,90190.0,0.89458]
[1765689441353,0.22183278,90191.0,90190.0,0.63808]
[1765689444217,0.22183278,90191.0,90190.0,0.66107]
[1765689445367,0.22183278,90191.0,90190.0,0.55898]
[1765689445586,0.33244478,90191.0,90190.0,0.55898]
[1765689446001,0.27722777,90191.0,90190.0,0.55898]
[1765689446210,0.22183278,90191.0,90190.0,0.26708]
[1765689446984,0.27722777,90191.0,90190.0,0.26708]
[1765689449465,0.22183278,90191.0,90190.0,0.26708]
[1765689451755,0.22183278,90191.0,90190.0,0.28984]
[1765689453754,0.22183278,90191.0,90190.0,0.30583]
[1765689490762,0.25513172,90191.0,90190.0,0.30583]
[1765689502531,0.03338011,90191.0,90190.0,0.30583]
[1765689503770,0.03338011,90191.0,90190.0,1.05823]
[1765689518085,0.03338011,90191.0,90190.0,1.05984287]
[1765689543700,0.03338011,90191.0,90190.0,1.03708287]
[1765689545976,0.03338011,90191.0,90190.0,1.02109287]
[1765689549104,0.03338011,90191.0,90190.0,0.99599287]
[1765689549601,0.03338011,90191.0,90190.0,0.95859287]
[1765689549837,0.03338011,90191.0,90190.0,1.00979287]
[1765689550037,0.03338011,90191.0,90190.0,0.98609287]
[1765689550579,0.03338011,90191.0,90190.0,0.98599287]
[1765689551668,0.03338011,90191.0,90190.0,1.00299287]
[1765689552396,0.06109906,90191.0,90190.0,1.00299287]
[1765689552597,0.14399211,90191.0,90190.0,0.4183]
[1765689552821,0.17171106,90191.0,90190.0,0.4183]
[1765689553202,0.17171106,90191.0,90190.0,0.4173]
[1765689553439,0.05539499,90188.0,90186.0,0.5355]
[1765689553619,0.22176391,90186.0,90185.0,0.57125456]
[1765689554159,0.25506621,90186.0,90185.0,0.57125456]
[1765689554535,0.25506621,90186.0,90185.0,0.60585456]
[1765689555494,0.25506621,90186.0,90185.0,0.60695456]
[1765689556688,0.25506621,90186.0,90185.0,0.60625456]
[1765689557560,0.25506621,90186.0,90185.0,0.63765456]
[1765689558541,0.25506621,90186.0,90185.0,0.62115456]
[1765689559616,0.25506621,90186.0,90185.0,0.62065456]
[1765689560638,0.25506621,90186.0,90185.0,0.64155456]
[1765689561732,0.25506621,90186.0,90185.0,0.64135456]
[1765689562787,0.25506621,90186.0,90185.0,0.63345456]
[1765689563590,0.25506621,90186.0,90185.0,0.06775456]
[1765689563797,0.25506621,90186.0,90185.0,0.66055456]
[1765689564015,0.25506621,90186.0,90185.0,0.62995456]
[1765689564344,0.25506621,90186.0,90185.0,0.60995456]
[1765689564767,0.25506621,90186.0,90185.0,0.61015456]
[1765689565690,0.25506621,90186.0,90185.0,0.63415456]
[1765689566641,0.25506621,90186.0,90185.0,0.64365456]
[1765689567039,0.54571258,90186.0,90185.0,0.06775456]
[1765689567264,0.60110757,90186.0,90185.0,0.05027456]
[1765689567959,0.60110757,90186.0,90185.0,0.04927456]
[1765689568158,0.60310757,90186.0,90185.0,0.04927456]
[1765689568363,0.60510757,90186.0,90185.0,0.04927456]
[1765689568753,0.60310757,90186.0,90185.0,0.04927456]
[1765689568946,0.60110757,90186.0,90185.0,0.04927456]
[1765689569180,0.60410757,90186.0,90185.0,0.04927456]
[1765689569382,0.60710757,90186.0,90185.0,0.04927456]
[1765689577353,0.60710757,90186.0,90180.0,0.0002]
[1765689577354,0.110612,90181.0,90180.0,0.0002]
[1765689577600,0.36011022,90181.0,90180.0,0.0002]
[1765689577778,0.3323882,90181.0,90180.0,0.0002]
[1765689577979,0.33682958,90181.0,90180.0,0.0002]
[1765689578548,0.39972384,90181.0,90180.0,0.0002]
[1765689579509,0.40272384,90181.0,90180.0,0.0002]
[1765689589122,0.34182958,90181.0,90180.0,0.0002]
[1765689589761,0.40272384,90181.0,90180.0,0.0002]
[1765689589977,0.39972384,90181.0,90180.0,0.0002]
[1765689590190,0.39772384,90181.0,90180.0,0.0002]
[1765689590381,0.39972384,90181.0,90180.0,0.0002]
[1765689590583,0.40172384,90181.0,90180.0,0.0002]
[1765689602762,0.34082958,90181.0,90180.0,0.0002]
[1765689603344,0.28561257,90181.0,90180.0,0.0002]
[1765689603547,0.23021758,90181.0,90180.0,0.0002]
[1765689604549,0.28561257,90181.0,90180.0,0.0002]
[1765689605165,0.34650683,90181.0,90180.0,0.0002]
[1765689612620,0.29111184,90181.0,90180.0,0.0002]
[1765689612826,0.34650683,90181.0,90180.0,0.0002]
[1765689655329,0.28561257,90181.0,90180.0,0.0002]
[1765689657939,0.34650683,90181.0,90180.0,0.0002]
[1765689667816,0.34539794,90181.0,90180.0,0.0002]
[1765689682853,0.34339794,90181.0,90180.0,0.0002]
[1765689683021,0.34639794,90181.0,90180.0,0.0002]
[1765689683585,0.34439794,90181.0,90180.0,0.0002]
[1765689683786,0.34639794,90181.0,90180.0,0.0002]
[1765689684719,0.35675032,90181.0,90180.0,0.0002]
[1765689687311,0.34639794,90181.0,90180.0,0.0002]
[1765689688552,0.3567482,90181.0,90180.0,0.0002]
[1765689689946,0.3567481,90181.0,90180.0,0.0002]
[1765689692411,0.34639794,90181.0,90180.0,0.0002]
[1765689698908,0.63709794,90181.0,90180.0,0.0002]
[1765689699133,0.64744572,90181.0,90180.0,0.0002]
[1765689705522,0.64744572,90181.0,90174.0,0.00023916]
[1765689705523,0.62310296,90175.0,90174.0,0.00023916]
[1765689705726,0.63345115,90175.0,90174.0,0.00023916]
[1765689705955,0.56790071,90169.0,90168.0,9e-05]
[1765689706165,0.5782489,90169.0,90168.0,9e-05]
[1765689706323,0.56790071,90169.0,90168.0,9e-05]
[1765689706523,0.57824382,90169.0,90168.0,9e-05]
[1765689706744,0.58268579,90169.0,90168.0,9e-05]
[1765689707262,0.57234268,90169.0,90168.0,9e-05]
[1765689707679,0.57534268,90169.0,90168.0,9e-05]
[1765689708319,0.57834268,90169.0,90168.0,9e-05]
[1765689711227,0.59507631,90169.0,90168.0,9e-05]
[1765689712869,0.57834268,90169.0,90168.0,9e-05]
[1765689719873,0.9276737,90169.0,90168.0,9e-05]
[1765689720073,0.9276737,90169.0,90141.0,0.00745557]
[1765689720074,0.01109336,90144.0,90141.0,0.00745557]
[1765689720284,0.62318415,90142.0,90141.0,0.00745557]
[1765689720742,0.63063972,90142.0,90141.0,0.00745557]
[1765689722800,0.63163972,90142.0,90141.0,0.00745557]
[1765689725273,0.75962734,90142.0,90141.0,0.00745557]
[1765689725502,0.75962734,90142.0,90120.0,0.0002]
[1765689725503,0.05539499,90121.0,90120.0,0.0002]
[1765689725652,0.51262385,90121.0,90120.0,0.0002]
[1765689725818,0.62323585,90121.0,90120.0,0.0002]
[1765689726262,0.65656701,90121.0,90120.0,0.0002]
[1765689726628,0.65656701,90121.0,90120.0,0.00157613]
[1765689727322,0.65756701,90121.0,90120.0,0.00157613]
[1765689730914,0.54695501,90121.0,90120.0,0.00157613]
[1765689732202,0.51362385,90121.0,90120.0,0.00157613]
[1765689733915,0.2917,90121.0,90120.0,0.003189]
[1765689734087,0.2917,90121.0,90120.0,0.042999]
[1765689734088,0.001,90121.0,90120.0,0.042999]
[1765689734470,0.001,90121.0,90120.0,0.26492532]
[1765689734668,0.2907,90123.0,90120.0,0.26492532]
[1765689734669,0.2907,90123.0,90120.0,0.27602088]
[1765689734882,0.2907,90123.0,90121.0,0.0237]
[1765689735223,0.3017957,90125.0,90122.0,0.02852233]
[1765689735420,0.2907,90125.0,90124.0,0.00161287]
[1765689735579,0.2218814,90139.0,90124.0,0.00161287]
[1765689735580,0.01109459,90134.0,90130.0,0.01109508]
[1765689735756,0.01109459,90134.0,90130.0,0.00161287]
[1765689735757,0.03883149,90133.0,90130.0,0.00161287]
[1765689735969,0.03883149,90133.0,90131.0,0.0237]
[1765689736173,0.02773678,90133.0,90132.0,0.01611]
[1765689736389,0.110612,90156.0,90143.0,0.22186969]
[1765689736639,0.01109262,90150.0,90147.0,0.01109299]
[1765689736935,0.01109262,90150.0,90147.0,0.01270586]
[1765689737114,0.23294019,90152.0,90148.0,0.0237]
[1765689737311,0.0110925,90151.0,90148.0,0.03479286]
[1765689737628,0.0110925,90151.0,90148.0,0.02531287]
[1765689737828,0.0110925,90151.0,90149.0,0.0237]
[1765689738036,0.01109225,90153.0,90150.0,0.01109262]
[1765689738245,0.01109225,90153.0,90149.0,0.24555368]
[1765689738246,0.2329408,90152.0,90149.0,0.0237]
[1765689738794,0.01109225,90153.0,90150.0,0.01109262]
[1765689738997,0.011092,90155.0,90152.0,0.02720237]
[1765689739169,0.01109188,90156.0,90154.0,0.02749]
[1765689739387,0.52363005,90156.0,90155.0,0.01611]
[1765689739591,0.52363005,90156.0,90155.0,0.03981]
[1765689740144,0.2907,90156.0,90155.0,0.26326303]
[1765689740348,0.2907,90156.0,90155.0,0.04142287]
[1765689741356,0.2907,90156.0,90155.0,0.04153876]
[1765689741718,0.2907,90156.0,90155.0,0.04353876]
[1765689742473,0.2907,90156.0,90155.0,0.04453876]
[1765689744346,0.59779607,90423.0,90155.0,0.04453876]
[1765689744347,0.1168,90186.0,90155.0,0.00311589]
[1765689744467,0.06089426,90187.0,90155.0,0.00311589]
[1765689744468,0.3324497,90156.0,90155.0,0.00311589]
[1765689744666,0.36577194,90156.0,90155.0,0.00311589]
[1765689745080,0.36577194,90156.0,90155.0,0.00211589]
[1765689745272,0.36577194,90156.0,90155.0,0.00011589]
[1765689746116,0.36677194,90156.0,90155.0,0.00011589]
[1765689746723,0.36677194,90156.0,90155.0,0.00044484]
[1765689747338,0.36777194,90156.0,90155.0,0.00044484]
[1765689747877,0.7193662,90156.0,90155.0,0.00044484]
[1765689748436,0.7193662,90156.0,90120.0,0.0002]
[1765689748437,0.22192385,90121.0,90120.0,0.0002]
[1765689748637,0.2330166,90123.0,90120.0,0.01971928]
[1765689748917,0.2330166,90123.0,90121.0,0.01752]
[1765689749116,0.2330166,90123.0,90121.0,0.01913287]
[1765689749318,0.2330166,90123.0,90121.0,0.05439287]
[1765689749525,0.2330166,90123.0,90122.0,0.01543]
[1765689749724,0.2330166,90123.0,90122.0,0.04035287]
[1765689750126,0.2330166,90123.0,90122.0,0.05787287]
[1765689751411,0.2330166,90123.0,90122.0,0.06187287]
[1765689752148,0.01109557,90126.0,90122.0,0.06187287]
[1765689752377,0.0110952,90129.0,90122.0,0.06187287]
[1765689752378,0.01109533,90128.0,90125.0,0.01543]
[1765689752723,0.01109533,90128.0,90126.0,1.0]
[1765689752905,0.01109533,90128.0,90126.0,0.02492287]
[1765689753106,0.01109533,90128.0,90127.0,0.05069]
[1765689753337,0.01109533,90128.0,90127.0,0.05230287]
[1765689754117,0.01109533,90128.0,90127.0,0.0531405]
[1765689754473,0.01109533,90128.0,90127.0,0.0541405]
[1765689755504,0.3017952,90129.0,90127.0,0.0541405]
[1765689755677,0.3017952,90129.0,90128.0,0.03874]
[1765689756083,0.30179496,90131.0,90128.0,0.04035287]
[1765689756282,0.01109459,90134.0,90131.0,0.02652496]
[1765689756482,0.30179459,90134.0,90131.0,0.02813783]
[1765689756682,0.30179459,90134.0,90133.0,0.01543]
[1765689756683,0.2907,90134.0,90133.0,0.01543]
[1765689756882,0.2907,90134.0,90133.0,0.01704287]
[1765689757201,0.2907,90134.0,90133.0,0.04035287]
[1765689758216,0.22188952,90135.0,90133.0,0.05787287]
[1765689758376,0.2907,90134.0,90133.0,0.02013287]
[1765689759228,0.2907,90134.0,90133.0,0.03656287]
[1765689759445,0.01109434,90136.0,90133.0,0.03656287]
[1765689759446,0.30179434,90136.0,90133.0,0.03656287]
[1765689759627,0.2907,90134.0,90133.0,0.03656287]
[1765689760264,0.2907,90134.0,90133.0,0.05887287]
[1765689760715,0.30179434,90136.0,90133.0,0.05987287]
[1765689760891,0.30179434,90136.0,90133.0,0.07096758]
[1765689761043,0.30179434,90136.0,90133.0,0.05987287]